bitfinex/quotes_BTCUSD_20251231
["timestamp","ask_amount","ask_price","bid_price","bid_amount"]
[1767142214348,0.00011,88345.0,88340.0,0.000497]
[1767142214349,0.01152234,88345.0,88340.0,0.000497]
[1767142214632,0.01152234,88345.0,88333.0,0.14938]
[1767142215198,0.02284159,88345.0,88333.0,0.14938]
[1767142215400,0.01131938,88344.0,88333.0,0.14938]
[1767142215605,5.2e-05,88333.0,88330.0,0.56508086]
[1767142215838,5.2e-05,88333.0,88330.0,0.14938]
[1767142216044,0.01131964,88342.0,88330.0,0.14938]
[1767142216342,0.01131951,88343.0,88330.0,0.14938]
[1767142216518,0.01131938,88344.0,88330.0,0.14938]
[1767142216724,0.06791673,88344.0,88330.0,0.56508086]
[1767142216922,0.01131951,88343.0,88330.0,0.56508086]
[1767142218832,0.01131964,88342.0,88330.0,0.56508086]
[1767142219033,0.01131951,88343.0,88330.0,0.56508086]
[1767142219257,0.01131938,88344.0,88330.0,0.56508086]
[1767142219473,0.02284159,88345.0,88330.0,0.56508086]
[1767142220475,0.01152234,88345.0,88330.0,0.57640204]
[1767142220617,0.01152234,88345.0,88330.0,0.56508086]
[1767142220818,0.01152234,88345.0,88330.0,0.57640204]
[1767142221042,0.01152234,88345.0,88331.0,0.01132105]
[1767142221661,0.01152234,88345.0,88330.0,0.57640204]
[1767142222175,0.01152234,88345.0,88332.0,0.01132092]
[1767142222742,0.01152234,88345.0,88331.0,0.01132105]
[1767142223197,0.01152234,88345.0,88332.0,0.14914092]
[1767142223374,0.01152234,88345.0,88332.0,0.13782]
[1767142224021,0.02284159,88345.0,88332.0,0.13782]
[1767142224158,0.01131938,88344.0,88332.0,0.13782]
[1767142224676,0.15812159,88345.0,88330.0,0.41570086]
[1767142224883,0.01131938,88344.0,88330.0,0.41570086]
[1767142225281,0.15812159,88345.0,88330.0,0.41570086]
[1767142226240,0.14680234,88345.0,88330.0,0.41570086]
[1767142226396,0.14680234,88345.0,88330.0,0.56484204]
[1767142226791,0.14680234,88345.0,88331.0,0.01132105]
[1767142227238,0.14680234,88345.0,88331.0,0.14914105]
[1767142228016,0.14680234,88345.0,88332.0,0.01132092]
[1767142228256,0.00016234,88345.0,88338.0,0.01132015]
[1767142228606,0.00016234,88345.0,88339.0,0.01132002]
[1767142228810,0.00016234,88345.0,88338.0,0.01132015]
[1767142229012,0.00016234,88345.0,88337.0,0.14914028]
[1767142230238,0.00016234,88345.0,88337.0,0.13782]
[1767142230426,0.00016234,88345.0,88339.0,0.01132002]
[1767142230831,0.00016234,88345.0,88340.0,0.13782]
[1767142230832,3.4e-07,88345.0,88340.0,0.13782]
[1767142231689,3.4e-07,88345.0,88340.0,0.137606]
[1767142231894,3.4e-07,88345.0,88335.0,0.56488086]
[1767142233551,3.4e-07,88345.0,88335.0,0.14918]
[1767142235300,3.4e-07,88345.0,88335.0,0.16050054]
[1767142236007,3.4e-07,88345.0,88335.0,0.14918]
[1767142238308,3.4e-07,88345.0,88335.0,0.16050054]
[1767142238509,3.4e-07,88345.0,88335.0,0.14918]
[1767142238733,3.4e-07,88345.0,88335.0,0.16050054]
[1767142239313,3.4e-07,88345.0,88335.0,0.14918]
[1767142239534,3.4e-07,88345.0,88335.0,0.16050054]
[1767142239755,3.4e-07,88345.0,88336.0,0.14914041]
[1767142240117,3.4e-07,88345.0,88338.0,0.13782]
[1767142240305,3.4e-07,88345.0,88338.0,0.14914015]
[1767142240708,3.4e-07,88345.0,88339.0,0.01132002]
[1767142240911,3.4e-07,88345.0,88338.0,0.14914015]
[1767142241468,3.4e-07,88345.0,88339.0,0.01132002]
[1767142241633,3.4e-07,88345.0,88339.0,0.13782]
[1767142243818,3.4e-07,88345.0,88335.0,0.01136]
[1767142245570,3.4e-07,88345.0,88335.0,0.14918]
[1767142247989,3.4e-07,88345.0,88335.0,0.16050054]
[1767142248561,3.4e-07,88345.0,88335.0,0.14918]
[1767142253254,3.4e-07,88345.0,88336.0,0.01132041]
[1767142253618,3.4e-07,88345.0,88335.0,0.16050054]
[1767142254048,3.4e-07,88345.0,88336.0,0.01132041]
[1767142254287,3.4e-07,88345.0,88337.0,0.01132028]
[1767142254957,3.4e-07,88345.0,88337.0,0.14476]
[1767142256100,3.4e-07,88345.0,88337.0,0.15608028]
[1767142256483,3.4e-07,88345.0,88338.0,0.06105368]
[1767142257162,3.4e-07,88345.0,88340.0,0.0113199]
[1767142259913,3.4e-07,88345.0,88339.0,0.06791968]
[1767142259914,3.4e-07,88345.0,88341.0,0.01131977]
[1767142260116,3.4e-07,88345.0,88342.0,0.14476]
[1767142260545,3.4e-07,88345.0,88339.0,0.01132002]
[1767142260902,3.4e-07,88345.0,88338.0,0.06105368]
[1767142261670,3.4e-07,88345.0,88338.0,0.04973353]
[1767142263859,3.4e-07,88345.0,88335.0,0.01136]
[1767142263860,0.00055,88338.0,88335.0,0.01136]
[1767142264063,3.4e-07,88345.0,88335.0,0.02268054]
[1767142264968,3.4e-07,88345.0,88337.0,0.01132028]
[1767142265718,3.4e-07,88345.0,88338.0,0.01132015]
[1767142266221,3.4e-07,88345.0,88337.0,0.01132028]
[1767142266648,3.4e-07,88345.0,88336.0,0.01132041]
[1767142267525,3.4e-07,88345.0,88338.0,0.01132015]
[1767142267679,3.4e-07,88345.0,88339.0,0.01132002]
[1767142268158,3.4e-07,88345.0,88340.0,0.0113199]
[1767142268358,3.4e-07,88345.0,88340.0,0.1513599]
[1767142268557,3.4e-07,88345.0,88342.0,0.14004]
[1767142269196,3.4e-07,88345.0,88343.0,0.14004]
[1767142270195,3.4e-07,88345.0,88341.0,0.15135977]
[1767142271178,3.4e-07,88345.0,88342.0,0.01131964]
[1767142271406,3.4e-07,88345.0,88342.0,0.15135964]
[1767142271840,3.4e-07,88345.0,88342.0,0.14004]
[1767142272667,3.4e-07,88345.0,88342.0,0.15136]
[1767142274739,3.4e-07,88345.0,88342.0,0.01132]
[1767142278954,0.0001116,88358.0,88342.0,0.01132]
[1767142279086,0.14968,88355.0,88342.0,0.01132]
[1767142280562,0.14968,88353.0,88342.0,0.01132]
[1767142280756,0.16099823,88353.0,88342.0,0.01077]
[1767142281057,0.14968,88353.0,88342.0,0.01077]
[1767142281690,0.16099823,88353.0,88342.0,0.01077]
[1767142282290,0.14968,88353.0,88342.0,0.01077]
[1767142288925,0.01131861,88350.0,88342.0,0.01077]
[1767142289117,0.06791357,88348.0,88342.0,0.01077]
[1767142289299,0.011319,88347.0,88342.0,0.01077]
[1767142289512,0.01131887,88348.0,88342.0,0.01077]
[1767142290481,0.011319,88347.0,88342.0,0.01077]
[1767142290814,0.01131887,88348.0,88342.0,0.01077]
[1767142291790,0.01131913,88346.0,88343.0,0.01132]
[1767142291952,0.16099925,88345.0,88343.0,0.01132]
[1767142292157,0.01131913,88346.0,88343.0,0.01132]
[1767142292990,0.011319,88347.0,88343.0,0.01132]
[1767142293959,0.01131874,88349.0,88343.0,0.01132]
[1767142294170,0.05659442,88348.0,88343.0,0.01132]
[1767142294429,0.06791329,88348.0,88343.0,0.01132]
[1767142294624,0.14968,88352.0,88343.0,0.01132]
[1767142294625,0.01131874,88349.0,88343.0,0.01132]
[1767142295211,0.01131887,88348.0,88343.0,0.01132]
[1767142295820,0.011319,88347.0,88343.0,0.01132]
[1767142296225,0.20627214,88352.0,88343.0,0.01132]
[1767142296441,0.01131887,88348.0,88343.0,0.01132]
[1767142296880,0.01131861,88350.0,88343.0,0.01132]
[1767142297080,0.14968,88352.0,88343.0,0.01132]
[1767142297081,0.16099836,88352.0,88343.0,0.01132]
[1767142298095,0.01131849,88351.0,88343.0,0.01132]
[1767142299625,0.01131861,88350.0,88343.0,0.01132]
[1767142300439,0.14968,88352.0,88343.0,0.01132]
[1767142300615,0.14983589,88358.0,88350.0,0.001099]
[1767142300840,0.14983589,88358.0,88343.0,0.15776]
[1767142301118,0.01131785,88356.0,88343.0,0.15776]
[1767142301277,0.01131797,88355.0,88343.0,0.15776]
[1767142301505,0.01131797,88355.0,88343.0,0.01132]
[1767142302157,0.16099785,88356.0,88343.0,0.01132]
[1767142302722,0.01131797,88355.0,88343.0,0.01132]
[1767142303099,0.16099785,88356.0,88343.0,0.01132]
[1767142304804,0.01131797,88355.0,88343.0,0.01132]
[1767142305450,0.14968,88356.0,88343.0,0.01132]
[1767142306453,0.16099785,88356.0,88343.0,0.01132]
[1767142306771,0.01131797,88355.0,88343.0,0.01132]
[1767142307204,0.16099785,88356.0,88343.0,0.01132]
[1767142307568,0.01131797,88355.0,88343.0,0.01132]
[1767142308141,0.16099785,88356.0,88343.0,0.01132]
[1767142309412,0.14968,88356.0,88343.0,0.01132]
[1767142309586,0.16099785,88356.0,88343.0,0.01132]
[1767142309989,0.01131797,88355.0,88343.0,0.01132]
[1767142310190,0.0113181,88354.0,88343.0,0.01132]
[1767142311289,0.14968,88356.0,88343.0,0.01132]
[1767142311518,0.16099785,88356.0,88343.0,0.01132]
[1767142312345,0.14968,88356.0,88343.0,0.01132]
[1767142312906,0.16099785,88356.0,88343.0,0.01132]
[1767142313381,0.15184797,88355.0,88343.0,0.01132]
[1767142314149,0.14053,88355.0,88343.0,0.01132]
[1767142316403,0.01131836,88352.0,88343.0,0.01132]
[1767142316610,0.01131874,88349.0,88343.0,0.01132]
[1767142316808,0.01131861,88350.0,88343.0,0.01132]
[1767142317227,0.01131874,88349.0,88343.0,0.01132]
[1767142317629,0.01131861,88350.0,88343.0,0.01132]
[1767142318044,0.01131849,88351.0,88343.0,0.01132]
[1767142318493,0.01131861,88350.0,88343.0,0.01132]
[1767142320382,0.01131836,88352.0,88343.0,0.01132]
[1767142320543,0.01131849,88351.0,88343.0,0.01132]
[1767142320748,0.01131836,88352.0,88343.0,0.01132]
[1767142321046,0.01131849,88351.0,88343.0,0.01132]
[1767142322507,0.01131836,88352.0,88343.0,0.01132]
[1767142323269,0.01131849,88351.0,88343.0,0.01132]
[1767142323474,0.06790976,88353.0,88343.0,0.01132]
[1767142324342,0.01131836,88352.0,88343.0,0.01132]
[1767142325340,0.01131849,88351.0,88343.0,0.01132]
[1767142325653,0.01131836,88352.0,88343.0,0.01132]
[1767142326187,0.01131823,88353.0,88343.0,0.01132]
[1767142326367,0.01131836,88352.0,88343.0,0.01132]
[1767142326735,0.14053,88355.0,88343.0,0.01132]
[1767142326938,0.42714571,88360.0,88344.0,0.13887]
[1767142327161,0.01131746,88359.0,88355.0,0.000549]
[1767142327362,0.01147348,88358.0,88344.0,0.13887]
[1767142327784,0.01131772,88357.0,88344.0,0.13887]
[1767142328398,0.01131785,88356.0,88344.0,0.13887]
[1767142328942,0.00015589,88358.0,88344.0,0.13887]
[1767142329258,0.01131772,88357.0,88344.0,0.13887]
[1767142329900,0.01131785,88356.0,88344.0,0.13887]
[1767142330115,0.01131772,88357.0,88344.0,0.13887]
[1767142330995,0.0113181,88354.0,88343.0,0.01132]
[1767142331189,0.01131797,88355.0,88343.0,0.01132]
[1767142331395,0.0113181,88354.0,88343.0,0.01132]
[1767142331836,0.01131823,88353.0,88343.0,0.01132]
[1767142332422,0.01131849,88351.0,88343.0,0.01132]
[1767142332893,0.01131836,88352.0,88343.0,0.01132]
[1767142333098,0.01131849,88351.0,88343.0,0.01132]
[1767142333435,0.06791101,88351.0,88343.0,0.01132]
[1767142333817,0.01131849,88351.0,88343.0,0.01132]
[1767142334212,0.01131836,88352.0,88343.0,0.01132]
[1767142335498,0.01131823,88353.0,88343.0,0.01132]
[1767142335692,0.01131836,88352.0,88343.0,0.01132]
[1767142336221,0.05659027,88355.0,88343.0,0.01132]
[1767142336642,0.06790824,88355.0,88343.0,0.01132]
[1767142337306,0.01131797,88355.0,88343.0,0.01132]
[1767142337529,0.01131785,88356.0,88343.0,0.01132]
[1767142337752,0.01131772,88357.0,88343.0,0.01132]
[1767142337973,0.15291348,88358.0,88343.0,0.14733]
[1767142338539,0.01131772,88357.0,88343.0,0.14733]
[1767142338943,0.01131785,88356.0,88343.0,0.14733]
[1767142339342,0.01131797,88355.0,88343.0,0.14733]
[1767142340173,0.01131785,88356.0,88343.0,0.14733]
[1767142341081,0.01131772,88357.0,88343.0,0.14733]
[1767142341290,0.01131785,88356.0,88343.0,0.14733]
[1767142341464,0.01131772,88357.0,88343.0,0.14733]
[1767142342050,0.01131785,88356.0,88343.0,0.14733]
[1767142342907,0.01131772,88357.0,88343.0,0.14733]
[1767142343956,0.01131785,88356.0,88343.0,0.14733]
[1767142344162,0.01131772,88357.0,88343.0,0.14733]
[1767142345433,0.01131785,88356.0,88343.0,0.14733]
[1767142345731,0.01131797,88355.0,88343.0,0.14733]
[1767142345918,0.01131785,88356.0,88343.0,0.14733]
[1767142347142,0.00015589,88358.0,88343.0,0.14733]
[1767142347337,0.01147348,88358.0,88343.0,0.14733]
[1767142347848,0.00015589,88358.0,88345.0,0.13601]
[1767142348037,0.00015589,88358.0,88345.0,0.14732925]
[1767142348186,0.00015589,88358.0,88345.0,0.13601]
[1767142349188,0.00015589,88358.0,88348.0,0.41582838]
[1767142349391,0.01937797,88362.0,88349.0,0.13601]
[1767142349650,0.00806089,88362.0,88349.0,0.13605429]
[1767142349894,0.00806089,88362.0,88351.0,0.13601]
[1767142350545,0.01937797,88362.0,88351.0,0.13601]
[1767142351362,0.01937797,88362.0,88351.0,0.14733]
[1767142351745,0.01131721,88361.0,88351.0,0.14733]
[1767142351940,0.01131733,88360.0,88351.0,0.14733]
[1767142352209,0.00806089,88362.0,88351.0,0.14733]
[1767142352396,0.01937797,88362.0,88351.0,0.14733]
[1767142352561,0.00806089,88362.0,88351.0,0.14733]
[1767142352942,0.01937797,88362.0,88351.0,0.14733]
[1767142353548,0.00806089,88362.0,88351.0,0.14733]
[1767142354202,0.01131721,88361.0,88351.0,0.14733]
[1767142354903,0.01131733,88360.0,88351.0,0.14733]
[1767142355269,0.01131746,88359.0,88351.0,0.14733]
[1767142355475,0.01131746,88359.0,88351.0,0.13575019]
[1767142355697,0.01131746,88359.0,88347.0,0.01132]
[1767142355698,0.05674667,88351.0,88347.0,0.01132]
[1767142355871,0.01131887,88348.0,88347.0,0.01132]
[1767142356109,0.06791225,88350.0,88347.0,0.01132]
[1767142357029,0.011319,88347.0,88334.0,0.0001116]
[1767142357351,0.011319,88347.0,88335.0,0.01132]
[1767142357352,0.01131925,88345.0,88335.0,0.01132]
[1767142358009,0.06791593,88345.0,88334.0,0.00016394]
[1767142358210,0.01131925,88345.0,88335.0,0.01132]
[1767142358660,0.01131913,88346.0,88335.0,0.01132]
[1767142359778,0.01131925,88345.0,88335.0,0.01132]
[1767142359923,0.01131913,88346.0,88335.0,0.01132]
[1767142360127,0.14512,88347.0,88335.0,0.01132]
[1767142361277,0.01132,88346.0,88335.0,0.01132]
[1767142364721,0.14512,88350.0,88346.0,0.000549]
[1767142364981,0.14512,88350.0,88338.0,0.04973353]
[1767142365187,0.15643861,88350.0,88338.0,0.04973353]
[1767142365595,0.14512,88350.0,88338.0,0.04973353]
[1767142365949,0.15643861,88350.0,88338.0,0.04973353]
[1767142367222,0.14512,88350.0,88338.0,0.04973353]
[1767142368193,0.01131836,88352.0,88338.0,0.04973353]
[1767142369373,0.01131849,88351.0,88338.0,0.04973353]
[1767142370668,0.01131823,88353.0,88338.0,0.04973353]
[1767142370959,0.01131823,88353.0,88339.0,0.14897]
[1767142371539,0.01131836,88352.0,88339.0,0.14897]
[1767142372086,0.01131849,88351.0,88339.0,0.14897]
[1767142372427,0.01131823,88353.0,88339.0,0.14897]
[1767142372743,0.01131836,88352.0,88339.0,0.14897]
[1767142373529,0.01131823,88353.0,88339.0,0.14897]
[1767142373767,0.01131836,88352.0,88339.0,0.14897]
[1767142373966,0.01131823,88353.0,88339.0,0.14897]
[1767142374509,0.01131849,88351.0,88339.0,0.14897]
[1767142375446,0.01131849,88351.0,88335.0,0.01132]
[1767142375650,0.01131849,88351.0,88335.0,0.02264054]
[1767142376190,0.01131849,88351.0,88335.0,0.17161054]
[1767142377205,0.06791061,88352.0,88335.0,0.17161054]
[1767142377409,0.01131849,88351.0,88335.0,0.17161054]
[1767142377613,0.06791061,88352.0,88335.0,0.17161054]
[1767142377756,0.01131836,88352.0,88335.0,0.22821312]
[1767142378453,0.01131836,88352.0,88335.0,0.17161054]
[1767142379722,0.01131836,88352.0,88336.0,0.01132041]
[1767142379877,0.01131836,88352.0,88335.0,0.17161054]
[1767142380077,0.01131836,88352.0,88336.0,0.01132041]
[1767142380285,0.01131836,88352.0,88335.0,0.15827054]
[1767142380286,0.01131861,88350.0,88335.0,0.14695]
[1767142380908,0.01131887,88348.0,88335.0,0.14695]
[1767142381083,0.011319,88347.0,88335.0,0.14695]
[1767142381315,0.01131887,88348.0,88335.0,0.14695]
[1767142382387,0.14063,88353.0,88334.0,0.00016394]
[1767142382388,0.01132028,88337.0,88334.0,1e-08]
[1767142382606,0.01132028,88337.0,88328.0,6.803e-05]
[1767142382607,0.05660655,88329.0,88328.0,6.803e-05]
[1767142382828,0.05661086,88323.0,88316.0,0.03399342]
[1767142383042,0.01132195,88324.0,88314.0,0.0114316]
[1767142383246,0.15694169,88326.0,88314.0,0.0114316]
[1767142383401,0.14562,88326.0,88314.0,0.0114316]
[1767142383775,0.145071,88326.0,88315.0,0.0113231]
[1767142383982,0.14562,88332.0,88317.0,0.01132284]
[1767142384155,0.14562,88332.0,88316.0,0.01132297]
[1767142384311,0.14562,88330.0,88314.0,0.0114316]
[1767142384531,0.01132143,88328.0,88314.0,0.0114316]
[1767142384739,0.01132143,88328.0,88321.0,6e-07]
[1767142384989,0.15694169,88326.0,88321.0,6e-07]
[1767142385175,0.14562,88326.0,88321.0,6e-07]
[1767142386658,0.15694169,88326.0,88321.0,6e-07]
[1767142387255,0.14562,88326.0,88321.0,6e-07]
[1767142390556,0.15694169,88326.0,88321.0,6e-07]
[1767142390753,0.14562,88326.0,88321.0,6e-07]
[1767142390974,0.15694169,88326.0,88321.0,6e-07]
[1767142391191,0.14562,88324.0,88321.0,6e-07]
[1767142391404,0.15694195,88324.0,88321.0,6e-07]
[1767142391576,0.14562,88322.0,88321.0,6e-07]
[1767142393868,0.145509,88322.0,88321.0,6e-07]
[1767142405222,0.05661066,88323.0,88314.0,1.6e-06]
[1767142405223,0.19486552,88315.0,88314.0,1.6e-06]
[1767142405364,0.20622552,88315.0,88314.0,5.392e-05]
[1767142405568,4.908e-05,88314.0,88308.0,0.0001116]
[1767142405774,0.01141979,88314.0,88308.0,0.0001116]
[1767142405970,9.656e-05,88314.0,88308.0,0.0001116]
[1767142408910,5.6e-07,88314.0,88308.0,0.0001116]
[1767142411177,0.01132379,88314.0,88308.0,0.0001116]
[1767142411511,0.01132379,88314.0,88302.0,0.14113]
[1767142411512,0.01132361,88311.0,88302.0,0.1373196]
[1767142411715,0.01132348,88312.0,88302.0,0.1373196]
[1767142412128,0.01132336,88313.0,88302.0,0.1373196]
[1767142412829,0.01132379,88314.0,88302.0,0.1373196]
[1767142413037,5.6e-07,88314.0,88302.0,0.1373196]
[1767142416866,0.01132379,88314.0,88302.0,0.1373196]
[1767142417132,0.01132477,88302.0,88299.0,0.0002]
[1767142417328,0.19487452,88301.0,88299.0,0.0002]
[1767142417523,0.0566283,88296.0,88294.0,6.923e-05]
[1767142417724,0.12969,88295.0,88294.0,6.923e-05]
[1767142417953,0.14957502,88300.0,88294.0,6.923e-05]
[1767142418170,0.13825,88300.0,88294.0,6.923e-05]
[1767142418289,0.13825,88304.0,88294.0,6.923e-05]
[1767142418950,0.13825,88303.0,88294.0,6.923e-05]
[1767142422584,0.13825,88310.0,88294.0,0.15252502]
[1767142422784,0.01136,88311.0,88302.0,0.15245477]
[1767142423082,0.01136,88313.0,88305.0,0.14113]
[1767142423279,0.00053142,88312.0,88305.0,0.15245438]
[1767142423574,0.00053142,88312.0,88305.0,0.14113]
[1767142424612,0.00053142,88312.0,88305.0,0.15245438]
[1767142424909,0.00053142,88312.0,88306.0,0.01132425]
[1767142425265,0.00053142,88312.0,88305.0,0.15245438]
[1767142425450,0.00053142,88312.0,88306.0,0.01132425]
[1767142427272,0.00053142,88312.0,88305.0,0.15245438]
[1767142427608,0.00053142,88312.0,88305.0,0.14113]
[1767142428196,0.00053142,88312.0,88306.0,0.01132425]
[1767142428395,0.00053142,88312.0,88305.0,0.15245438]
[1767142428694,0.00053142,88312.0,88306.0,0.01132425]
[1767142429912,0.00053142,88312.0,88305.0,0.14113]
[1767142430075,0.00053142,88312.0,88302.0,0.02268477]
[1767142430276,0.00053142,88312.0,88305.0,0.01132438]
[1767142431279,0.00053142,88312.0,88306.0,0.01132425]
[1767142431597,0.00053142,88312.0,88304.0,0.01132451]
[1767142431856,0.00053142,88312.0,88302.0,0.02268477]
[1767142432023,0.00053142,88312.0,88302.0,0.01136]
[1767142432461,0.00053142,88312.0,88302.0,0.02268477]
[1767142434997,0.00053142,88312.0,88302.0,0.01136]
[1767142435657,0.00053142,88312.0,88302.0,0.02268477]
[1767142436675,0.00053142,88312.0,88302.0,0.01136]
[1767142437382,0.00053142,88312.0,88302.0,0.02268477]
[1767142437948,0.00053142,88312.0,88304.0,0.01132451]
[1767142438139,0.00053142,88312.0,88306.0,0.01132425]
[1767142438339,0.00053142,88312.0,88307.0,0.01132413]
[1767142438740,0.00053142,88312.0,88306.0,0.01132425]
[1767142439063,0.00053142,88312.0,88304.0,0.01132451]
[1767142440297,0.00053142,88312.0,88305.0,0.01132438]
[1767142441542,0.00053142,88312.0,88304.0,0.01132451]
[1767142442825,0.00053142,88312.0,88302.0,0.02268477]
[1767142443019,0.00053142,88312.0,88302.0,0.01136]
[1767142443639,0.00053142,88312.0,88304.0,0.01132451]
[1767142444103,0.00053142,88312.0,88305.0,0.01132438]
[1767142445669,0.00053142,88312.0,88306.0,0.01132425]
[1767142446053,0.00053142,88312.0,88305.0,0.01132438]
[1767142446838,0.00053142,88312.0,88304.0,0.01132451]
[1767142447256,0.00053142,88312.0,88305.0,0.01132438]
[1767142448206,0.00053142,88312.0,88304.0,0.01132451]
[1767142448355,0.00053142,88312.0,88305.0,0.01132438]
[1767142448780,0.00053142,88312.0,88304.0,0.01132451]
[1767142449607,0.00053142,88312.0,88305.0,0.01132438]
[1767142449983,0.00053142,88312.0,88304.0,0.01132451]
[1767142450192,0.00053142,88312.0,88305.0,0.01132438]
[1767142450778,0.00053142,88312.0,88306.0,0.01132425]
[1767142451179,0.00053142,88312.0,88309.0,0.01132387]
[1767142451385,1.42e-06,88312.0,88308.0,0.14547]
[1767142451582,1.42e-06,88312.0,88308.0,0.156794]
[1767142451845,1.42e-06,88312.0,88310.0,0.14547]
[1767142454913,0.0001116,88324.0,88317.0,0.14547]
[1767142455116,0.0001116,88324.0,88317.0,0.15679284]
[1767142456065,0.0001116,88324.0,88321.0,0.01132233]
[1767142456760,0.0001116,88324.0,88320.0,0.15953246]
[1767142456999,0.0001116,88324.0,88320.0,0.14821]
[1767142457181,0.0001116,88324.0,88320.0,0.15953246]
[1767142457330,0.0001116,88324.0,88321.0,0.216144]
[1767142457531,0.0001116,88324.0,88323.0,0.14821]
[1767142458168,0.000549,88323.0,88321.0,0.14821]
[1767142458370,0.000549,88323.0,88305.0,0.14821]
[1767142458371,0.14135,88321.0,88305.0,0.14821]
[1767142458570,0.14135,88321.0,88310.0,0.41631136]
[1767142461909,0.0001116,88324.0,88310.0,0.4276351]
[1767142463508,0.0001116,88324.0,88310.0,0.41631136]
[1767142463671,0.0001116,88324.0,88310.0,0.4276351]
[1767142464619,0.1414616,88324.0,88310.0,0.41631136]
[1767142465677,0.1414616,88324.0,88310.0,0.4276351]
[1767142466620,0.1414616,88324.0,88311.0,0.01132361]
[1767142467331,0.1414616,88324.0,88311.0,0.1176746]
[1767142467536,0.1414616,88324.0,88313.0,0.01132336]
[1767142467694,0.1414616,88324.0,88314.0,0.01136]
[1767142472739,0.1414616,88324.0,88319.0,0.01132259]
[1767142472740,0.0001116,88324.0,88319.0,0.01132259]
[1767142472939,0.0001116,88324.0,88320.0,0.14821]
[1767142473199,0.0001116,88324.0,88315.0,0.14821]
[1767142473411,0.0001116,88324.0,88315.0,0.1595331]
[1767142474047,0.0001116,88324.0,88315.0,0.14821]
[1767142475154,0.0001116,88324.0,88315.0,0.1595331]
[1767142475719,0.0001116,88324.0,88315.0,0.14821]
[1767142479799,0.0001116,88324.0,88315.0,0.1595331]
[1767142480310,0.0001116,88324.0,88315.0,0.14821]
[1767142482190,0.0001116,88324.0,88315.0,0.1595331]
[1767142482369,0.0001116,88324.0,88315.0,0.14821]
[1767142483371,0.0001116,88324.0,88315.0,0.1595331]
[1767142483574,0.0001116,88324.0,88316.0,0.05661488]
[1767142483733,0.0001116,88324.0,88316.0,0.01132297]
[1767142484127,0.0001116,88324.0,88315.0,0.1595331]
[1767142485450,0.0001116,88324.0,88316.0,0.01132297]
[1767142485883,0.0001116,88324.0,88315.0,0.1595331]
[1767142487196,0.0001116,88324.0,88316.0,0.01132297]
[1767142487397,0.0001116,88324.0,88315.0,0.1595331]
[1767142490512,0.0001116,88324.0,88315.0,0.14821]
[1767142490711,0.0001116,88324.0,88316.0,0.01132297]
[1767142491437,0.0001116,88324.0,88315.0,0.1595331]
[1767142491641,0.0001116,88324.0,88315.0,0.14821]
[1767142491798,0.0001116,88324.0,88315.0,0.1595331]
[1767142493235,0.0001116,88324.0,88316.0,0.01132297]
[1767142493442,0.0001116,88324.0,88319.0,0.01132259]
[1767142495021,0.0001116,88324.0,88320.0,0.14817246]
[1767142495278,0.0001116,88324.0,88321.0,0.01136]
[1767142495486,0.0001116,88324.0,88321.0,0.14821]
[1767142495790,0.0001116,88324.0,88321.0,0.01136]
[1767142500692,0.01132002,88339.0,88321.0,0.02268233]
[1767142500922,0.14401,88337.0,88321.0,0.0114716]
[1767142501123,0.14401,88337.0,88321.0,0.02279393]
[1767142501479,0.15533028,88337.0,88321.0,0.0114716]
[1767142501680,0.14401,88335.0,88321.0,0.0114716]
[1767142501900,0.15533054,88335.0,88321.0,0.0114716]
[1767142502096,0.14401,88335.0,88321.0,0.0114716]
[1767142503495,0.15533092,88332.0,88321.0,0.0109226]
[1767142503694,0.14401,88329.0,88321.0,0.0109226]
[1767142504119,0.14401,88329.0,88314.0,0.01143483]
[1767142504120,0.14401,88326.0,88314.0,0.0001116]
[1767142506112,0.14401,88326.0,88314.0,0.01143483]
[1767142506440,0.14401,88326.0,88314.0,0.0001116]
[1767142507931,0.14401,88326.0,88314.0,0.01143483]
[1767142508125,0.14401,88326.0,88314.0,0.0001116]
[1767142508965,0.14401,88326.0,88314.0,0.01143483]
[1767142509569,0.14401,88326.0,88314.0,0.0001116]
[1767142510364,0.14401,88326.0,88315.0,0.0113231]
[1767142511493,0.14401,88326.0,88314.0,0.01143483]
[1767142512562,0.14401,88326.0,88315.0,0.0113231]
[1767142513377,0.14401,88326.0,88314.0,0.01143483]
[1767142513628,0.14401,88326.0,88315.0,0.0113231]
[1767142513787,0.14401,88326.0,88314.0,0.01143483]
[1767142515915,0.14401,88326.0,88314.0,0.0001116]
[1767142518189,0.15533169,88326.0,88314.0,0.0001116]
[1767142518858,0.14401,88326.0,88314.0,0.0001116]
[1767142519386,0.14726,88324.0,88314.0,0.0001116]
[1767142520326,0.01132284,88317.0,88308.0,0.0001116]
[1767142520646,0.0113231,88315.0,88309.0,0.01136]
[1767142520790,0.14726,88314.0,88309.0,0.01136]
[1767142520990,0.14726,88314.0,88309.0,0.011034]
[1767142523780,0.15858323,88314.0,88309.0,0.011034]
[1767142523976,0.14726,88314.0,88309.0,0.011034]
[1767142529756,0.15858323,88314.0,88309.0,0.011034]
[1767142529971,0.14726,88314.0,88309.0,0.011034]
[1767142530670,0.06793674,88318.0,88301.0,0.0001116]
[1767142530671,0.14726,88308.0,88304.0,0.01136]
[1767142531092,0.14726,88313.0,88304.0,0.01136]
[1767142532008,0.15858336,88313.0,88304.0,0.01136]
[1767142532425,0.14726,88313.0,88304.0,0.01136]
[1767142533287,0.01132348,88312.0,88304.0,0.01136]
[1767142533484,0.01132361,88311.0,88304.0,0.01136]
[1767142533687,0.15858348,88312.0,88304.0,0.01136]
[1767142534033,0.14726,88312.0,88304.0,0.01136]
[1767142534810,0.14726,88312.0,88305.0,6.1e-07]
[1767142537728,0.15858348,88312.0,88305.0,6.1e-07]
[1767142538114,0.14726,88312.0,88305.0,6.1e-07]
[1767142538508,0.01132361,88311.0,88305.0,6.1e-07]
[1767142538870,0.14726,88312.0,88305.0,6.1e-07]
[1767142538871,0.14726,88306.0,88305.0,6.1e-07]
[1767142539070,0.01132451,88304.0,88301.0,0.01143093]
[1767142539276,0.06794631,88305.0,88301.0,0.01152749]
[1767142539578,0.15858425,88306.0,88301.0,0.01152749]
[1767142539739,0.01132438,88305.0,88301.0,0.01152749]
[1767142540073,0.15858425,88306.0,88301.0,0.01152749]
[1767142541041,0.15858438,88305.0,88301.0,0.01152749]
[1767142541344,0.15858438,88305.0,88301.0,0.01148459]
[1767142541543,0.14726,88303.0,88301.0,1.41e-06]
[1767142542151,0.15858438,88305.0,88301.0,1.41e-06]
[1767142542839,0.14726,88305.0,88301.0,1.41e-06]
[1767142544470,0.146718,88305.0,88301.0,1.41e-06]
[1767142544879,0.011324,88308.0,88301.0,1.41e-06]
[1767142545326,0.15858387,88309.0,88301.0,1.41e-06]